bitfinex/quotes_SOLUSD_20250216
["timestamp","ask_amount","ask_price","bid_price","bid_amount"]
[1739729828144,1.0,189.23,189.22,31.48447127]
[1739729828483,1.0,189.25,189.22,31.48447127]
[1739729828772,67.6,189.25,189.24,31.48447127]
[1739729828947,67.6,189.25,189.23,31.48447127]
[1739729829148,1.0,189.25,189.23,31.48447127]
[1739729829471,68.6,189.25,189.23,31.48447127]
[1739729829965,68.6,189.25,189.24,5.2842]
[1739729830146,0.99082078,189.26,189.24,5.2842]
[1739729830147,1.0,189.26,189.24,5.2842]
[1739729830662,1.0,189.23,189.22,5.2846]
[1739729830874,67.6,189.25,189.22,5.2846]
[1739729831053,31.48447127,189.23,189.22,5.2846]
[1739729831254,31.48447127,189.24,189.17,96.40332131]
[1739729831455,19.6,189.23,189.17,96.40332131]
[1739729831661,31.48447127,189.25,189.18,31.48447127]
[1739729831859,31.48447127,189.26,189.18,31.48447127]
[1739729832368,111.74813418,189.45,189.18,31.48447127]
[1739729832369,31.48447127,189.22,189.18,5.2859]
[1739729832572,31.48447127,189.2,189.18,5.2859]
[1739729832776,1.0,189.14,188.98,31.48447127]
[1739729832985,31.48447127,189.02,188.96,0.99997777]
[1739729833155,82.3,189.13,188.96,0.99997777]
[1739729833156,13.41184853,189.12,188.96,0.99997777]
[1739729833471,31.48447127,189.05,188.97,31.48447127]
[1739729833678,31.48447127,189.05,189.02,0.03]
[1739729833878,31.48447127,189.12,189.04,31.48447127]
[1739729834084,82.3,189.13,189.06,31.48447127]
[1739729834254,13.41184853,189.12,189.07,5.289]
[1739729835358,13.41184853,189.12,189.07,36.77347127]
[1739729835656,31.48447127,189.19,189.11,31.48447127]
[1739729835855,2.0,189.2,189.07,5.289]
[1739729836056,20.0,189.16,189.02,0.03]
[1739729836270,20.0,189.16,189.03,20.0]
[1739729836582,13.41184853,189.15,189.04,5.24]
[1739729836795,13.41184853,189.15,189.03,20.0]
[1739729837382,113.78447127,189.19,189.11,31.48447127]
[1739729837585,82.3,189.19,189.13,31.48447127]
[1739729837784,82.3,189.19,189.14,31.48447127]
[1739729838172,1.886e-05,189.14,189.1,18.5087]
[1739729838375,1.886e-05,189.14,189.13,31.48447127]
[1739729839365,1.886e-05,189.14,189.1,18.5087]
[1739729839366,1.886e-05,189.14,189.1,49.99317127]
[1739729839880,1.886e-05,189.14,189.12,31.48447127]
[1739729840281,1.886e-05,189.14,189.13,5.2873]
[1739729840784,1.886e-05,189.14,189.13,36.77177127]
[1739729842288,1.886e-05,189.14,189.13,5.2873]
[1739729842781,1.886e-05,189.14,189.13,36.77177127]
[1739729843564,1.886e-05,189.14,189.13,37.77177127]
[1739729845190,1.886e-05,189.14,189.13,38.77174904]
[1739729845786,1.886e-05,189.14,189.13,42.62596234]
[1739729847294,1.886e-05,189.14,189.13,70.25622031]
[1739729848080,1.886e-05,189.14,189.13,38.77174904]
[1739729848684,1.886e-05,189.14,189.13,36.77177127]
[1739729848976,1.886e-05,189.14,189.13,5.2873]
[1739729849293,1.886e-05,189.14,189.13,36.77177127]
[1739729851072,1.886e-05,189.14,189.13,38.56468625]
[1739729852199,1.886e-05,189.14,189.13,39.56466402]
[1739729853116,1.886e-05,189.14,189.13,71.04913529]
[1739729853304,0.063,189.23,189.18,1.0]
[1739729853480,0.063,189.23,189.21,31.48447127]
[1739729853676,0.063,189.23,189.18,31.48447127]
[1739729853994,0.063,189.23,189.19,5.2856]
[1739729854177,0.063,189.23,189.2,31.48447127]
[1739729854380,0.063,189.23,189.21,31.48447127]
[1739729854603,0.063,189.23,189.22,31.48447127]
[1739729855177,0.063,189.23,189.2,31.48447127]
[1739729855876,0.063,189.23,189.22,31.48447127]
[1739729856075,0.063,189.23,189.22,36.76927127]
[1739729856280,0.063,189.23,189.22,31.48447127]
[1739729856702,0.063,189.23,189.22,36.76927127]
[1739729857788,0.063,189.23,189.22,37.76927127]
[1739729857995,0.063,189.23,189.22,36.76927127]
[1739729858618,0.063,189.23,189.22,37.76927127]
[1739729859389,0.063,189.23,189.22,36.76927127]
[1739729859594,0.063,189.23,189.22,5.2848]
[1739729860113,0.063,189.23,189.22,20.0]
[1739729860313,0.063,189.23,189.22,31.48447127]
[1739729860520,0.063,189.23,189.22,33.27699718]
[1739729860829,0.063,189.33,189.3,31.48447127]
[1739729860997,0.063,189.33,189.28,31.48447127]
[1739729861632,3.1074025,189.32,189.28,31.48447127]
[1739729861830,3.1074025,189.32,189.25,20.0]
[1739729861831,34.59187377,189.32,189.24,51.48447127]
[1739729862329,34.59187377,189.32,189.25,36.76847127]
[1739729862498,3.1074025,189.32,189.25,36.76847127]
[1739729862698,8.3895025,189.32,189.25,36.76847127]
[1739729863018,3.1074025,189.31,189.25,36.76847127]
[1739729864422,31.48447127,189.29,189.2,36.76987127]
[1739729864617,31.48447127,189.27,189.2,36.76987127]
[1739729864824,8.3901025,189.3,189.17,84.72]
[1739729864998,44.8963198,189.25,189.18,5.2856]
[1739729865197,44.8963198,189.25,189.17,83.72]
[1739729865198,44.8963198,189.23,189.16,31.48447127]
[1739729865695,13.41184853,189.19,189.13,36.77177127]
[1739729866113,13.41184853,189.2,189.14,31.48447127]
[1739729866314,13.41184853,189.2,189.15,31.48447127]
[1739729866526,50.1817198,189.2,189.13,31.48447127]
[1739729866712,13.41184853,189.18,189.12,36.77207127]
[1739729866905,13.41184853,189.18,189.14,31.48447127]
[1739729867110,18.69724853,189.2,189.14,31.48447127]
[1739729867406,50.1817198,189.2,189.13,31.48447127]
[1739729867726,13.41184853,189.18,189.13,31.48447127]
[1739729868025,13.41184853,189.18,189.12,36.77207127]
[1739729868224,13.41184853,189.19,189.13,31.48447127]
[1739729868426,31.48447127,189.23,189.16,31.48447127]
[1739729868608,31.48447127,189.24,189.17,31.48447127]
[1739729868924,31.48447127,189.25,189.18,31.48447127]
[1739729869128,31.48447127,189.26,189.19,31.48447127]
[1739729869615,31.48447127,189.28,189.21,31.48447127]
[1739729869815,82.3,189.32,189.19,1.0]
[1739729869816,31.48447127,189.3,189.23,36.76897127]
[1739729870202,31.48447127,189.29,189.22,31.48447127]
[1739729870423,31.48447127,189.28,189.22,31.48447127]
[1739729871024,13.41184853,189.22,189.15,36.77127127]
[1739729871325,44.8963198,189.22,189.15,36.77127127]
[1739729872914,0.063,189.23,189.17,31.48447127]
[1739729873123,5.3477,189.23,189.16,31.48447127]
[1739729873322,44.8963198,189.22,189.15,36.77127127]
[1739729873639,44.8963198,189.22,189.15,31.48447127]
[1739729874238,44.8963198,189.22,189.15,36.77117127]
[1739729874543,31.48447127,189.22,189.15,36.77117127]
[1739729874746,36.83207127,189.23,189.16,31.48447127]
[1739729874928,13.41184853,189.22,189.16,36.77087127]
[1739729876837,50.1811198,189.22,189.15,36.77127127]
[1739729878140,31.48447127,189.22,189.15,36.77127127]
[1739729878324,36.83207127,189.23,189.16,31.48447127]
[1739729878518,13.41184853,189.22,189.16,31.48447127]
[1739729879239,18.69674853,189.22,189.16,31.48447127]
[1739729880336,0.063,189.23,189.17,31.48447127]
[1739729880527,13.47484853,189.23,189.17,31.48447127]
[1739729880834,13.47484853,189.23,189.17,19.31121536]
[1739729881335,0.063,189.23,189.19,19.31121536]
[1739729881633,0.063,189.23,189.22,19.31121536]
[1739729881833,0.063,189.23,189.17,5.286]
[1739729882057,0.063,189.23,189.17,19.31121536]
[1739729882226,13.47484853,189.23,189.15,5.2868]
[1739729882927,13.47484853,189.23,189.16,19.31121536]
[1739729883359,13.47484853,189.23,189.17,19.31121536]
[1739729883544,18.75944853,189.23,189.17,19.31121536]
[1739729883844,0.063,189.23,189.19,19.31121536]
[1739729884219,0.063,189.23,189.02,28.35376003]
[1739729884220,1.0,189.15,189.02,0.03]
[1739729884416,19.31121536,189.07,189.02,0.03]
[1739729884615,32.72306389,189.05,189.02,0.03]
[1739729884850,32.72306389,189.03,189.02,0.03]
[1739729885026,0.79278464,189.04,189.02,0.03]
[1739729886342,24.60011536,189.08,189.02,0.03]
[1739729886548,0.79278464,189.07,189.02,0.03]
[1739729887542,0.79278464,189.07,189.03,31.43210647]
[1739729888234,5.2881,189.11,189.02,0.03]
[1739729888235,0.79278464,189.09,189.04,31.43210647]
[1739729888436,0.79278464,189.09,189.05,31.43210647]
[1739729888831,0.79278464,189.1,189.05,31.43210647]
[1739729889237,0.79278464,189.1,189.04,31.43210647]
[1739729889439,0.79278464,189.1,189.06,31.43210647]
[1739729889634,0.79278464,189.11,189.06,31.43210647]
[1739729889836,0.79278464,189.12,189.07,31.43210647]
[1739729890052,0.79278464,189.14,189.07,31.43210647]
[1739729890255,0.79278464,189.14,189.08,31.43210647]
[1739729890425,0.79278464,189.14,189.07,31.43210647]
[1739729891159,0.79278464,189.14,189.08,31.43210647]
[1739729891340,0.79278464,189.14,189.09,31.43210647]
[1739729892328,0.79278464,189.14,189.1,31.43210647]
[1739729892532,0.79278464,189.16,189.12,31.43210647]
[1739729892731,13.41184853,189.17,189.12,31.43210647]
[1739729892947,0.79278464,189.18,189.12,31.43210647]
[1739729893152,0.79278464,189.18,189.14,31.43210647]
[1739729893464,13.41184853,189.19,189.15,31.43210647]
[1739729893630,0.79278464,189.18,189.15,31.43210647]
[1739729893834,0.79278464,189.18,189.1,1.0]
[1739729893835,0.79278464,189.18,189.13,31.43210647]
[1739729894852,0.79278464,189.18,189.14,31.43210647]
[1739729895367,0.79278464,189.18,189.1,5.2879]
[1739729895368,0.79278464,189.19,189.15,31.43210647]
[1739729895545,0.79278464,189.21,189.15,31.43210647]
[1739729895956,13.41184853,189.2,189.14,31.43210647]
[1739729896160,0.79278464,189.19,189.13,36.71930647]
[1739729896352,0.79278464,189.19,189.14,31.43210647]
[1739729897368,13.41184853,189.18,189.12,31.43210647]
[1739729897569,0.79278464,189.17,189.12,31.43210647]
[1739729897762,0.79278464,189.17,189.13,0.03]
[1739729898147,13.41184853,189.18,189.13,0.03]
[1739729898350,18.69744853,189.19,189.13,0.03]
[1739729898650,18.69744853,189.19,189.14,31.43210647]
[1739729898844,18.69744853,189.19,189.13,31.46210647]
[1739729899048,31.43210647,189.14,189.13,0.03]
[1739729899251,44.843955,189.14,189.13,0.03]
[1739729899746,50.130955,189.14,189.13,0.03]
[1739729902669,1.0,188.98,188.97,0.03]
[1739729902868,8.2084,189.03,188.88,3.6009]
[1739729902869,1.0,188.91,188.88,3.6009]
[1739729903070,2.0,188.92,188.73,31.43210647]
[1739729903259,31.43210647,188.79,188.72,16.47926963]
[1739729903458,2.0,188.87,188.72,16.47926963]
[1739729903670,20.0,188.9,188.72,16.47926963]
[1739729903671,31.43210647,188.76,188.72,16.47926963]
[1739729903871,13.41184853,188.73,188.72,16.47926963]
[1739729904175,31.43210647,188.81,188.72,47.9113761]
[1739729904353,31.43210647,188.81,188.73,31.43210647]
[1739729904551,31.43210647,188.82,188.75,31.43210647]
[1739729904753,31.43210647,188.83,188.75,31.43210647]
[1739729905051,87.5942,188.89,188.75,31.43210647]
[1739729905052,13.41184853,188.81,188.75,31.43210647]
[1739729905377,44.843955,188.81,188.73,31.43210647]
[1739729905964,39.65586038,188.97,188.78,20.0]
[1739729905965,31.43210647,188.83,188.78,20.0]
[1739729906260,31.43210647,188.89,188.82,31.43210647]
[1739729906466,13.41184853,188.88,188.82,31.43210647]
[1739729907063,13.41184853,188.89,188.83,31.43210647]
[1739729907288,31.43210647,188.91,188.84,31.43210647]
[1739729907460,31.43210647,188.93,188.86,31.43210647]
[1739729908174,31.43210647,188.92,188.85,31.43210647]
[1739729909487,6.2917,188.98,188.87,31.43210647]
[1739729909488,31.43210647,188.94,188.87,31.43210647]
[1739729909783,31.43210647,188.93,188.86,31.43210647]
[1739729910187,31.43210647,188.92,188.85,31.43210647]
[1739729910395,31.43210647,188.93,188.86,31.46210647]
[1739729910561,31.43210647,188.93,188.86,0.03]
[1739729911070,31.43210647,188.94,188.87,31.43210647]
[1739729911267,31.43210647,188.94,188.88,31.43210647]
[1739729911576,31.43210647,188.92,188.86,0.03]
[1739729912988,31.43210647,188.93,188.86,31.46210647]
[1739729913208,31.43210647,188.89,188.86,0.03]
[1739729913760,31.43210647,188.89,188.82,18.37131395]
[1739729914173,31.43210647,188.88,188.82,18.37131395]
[1739729914486,31.43210647,188.89,188.82,18.37131395]
[1739729914781,31.43210647,188.89,188.78,10.99465228]
[1739729914782,31.43210647,188.87,188.8,31.43210647]
[1739729915081,31.43210647,188.87,188.81,36.72840647]
[1739729915283,31.43210647,188.88,188.81,36.72840647]
[1739729915790,31.43210647,188.88,188.78,10.2004]
[1739729915791,44.843955,188.87,188.8,31.43210647]
[1739729915999,31.43210647,188.87,188.8,31.43210647]
[1739729916167,31.43210647,188.87,188.78,15.4974]
[1739729916168,31.43210647,188.85,188.78,38.79210647]
[1739729917080,31.43210647,188.87,188.8,31.43210647]
[1739729917385,31.43210647,188.89,188.83,31.43210647]
[1739729917971,31.43210647,188.9,188.83,31.43210647]
[1739729918475,31.43210647,188.91,188.84,31.43210647]
[1739729918686,31.43210647,188.92,188.85,31.43210647]
[1739729919682,31.43210647,188.93,188.86,31.43210647]
[1739729920602,31.43210647,188.93,188.87,5.2946]
[1739729921678,31.43210647,188.95,188.88,31.43210647]
[1739729921881,31.43210647,188.97,188.9,31.43210647]
[1739729922198,31.43210647,188.96,188.89,31.43210647]
[1739729922495,31.43210647,188.96,188.9,5.2938]
[1739729922708,19.36814502,188.96,188.9,5.2938]
[1739729922893,0.063,188.93,188.9,24.66194502]
[1739729923809,47.7919994,189.09,188.92,19.36814502]
[1739729923980,19.36814502,189.03,188.96,19.36814502]
[1739729924185,1.0,189.07,188.93,19.36814502]
[1739729924390,18.70134853,189.06,188.94,5.2926]
[1739729924690,19.36814502,189.0,188.94,5.2926]
[1739729925576,19.36814502,189.03,188.96,19.36814502]
[1739729925780,19.36814502,189.04,188.97,19.36814502]
[1739729926004,13.41184853,189.01,188.87,83.86]
[1739729926189,19.36814502,188.96,188.88,5.2943]
[1739729926390,19.36814502,188.97,188.9,19.36814502]
[1739729926593,19.36814502,188.99,188.92,19.36814502]
[1739729927629,19.36814502,188.99,188.93,5.2929]
[1739729928188,19.36814502,189.01,188.94,19.36814502]
[1739729928435,19.36814502,189.03,188.96,19.36814502]
[1739729928718,5.289,189.07,188.93,24.66104502]
[1739729928719,19.36814502,189.0,188.93,24.66104502]
[1739729929918,19.36814502,188.99,188.92,19.36814502]
[1739729930126,19.36814502,188.98,188.9,19.36814502]
[1739729930421,19.36814502,188.98,188.88,5.2943]
[1739729930422,19.36814502,188.98,188.91,19.36814502]
[1739729930991,19.36814502,188.96,188.89,19.36814502]
[1739729931427,19.36814502,188.94,188.87,19.36814502]
[1739729931720,19.36814502,188.93,188.86,24.66304502]
[1739729932352,19.36814502,188.94,188.87,19.36814502]
[1739729932841,24.66084502,188.94,188.87,19.36814502]
[1739729933037,24.66084502,188.94,188.87,24.66274502]
[1739729933352,24.66084502,188.94,188.86,19.36814502]
[1739729933353,19.36814502,188.93,188.86,19.36814502]
[1739729934214,24.66084502,188.94,188.87,19.36814502]
[1739729934847,24.66084502,188.94,188.87,24.66274502]
[1739729935944,24.66084502,188.94,188.87,19.36814502]
[1739729936942,24.66084502,188.94,188.87,24.66264502]
[1739729937460,5.2927,188.94,188.88,19.36814502]
[1739729937937,19.36814502,188.99,188.92,19.36814502]
[1739729938725,38.07099355,189.0,188.93,19.36814502]
[1739729938947,24.65914502,189.0,188.93,19.36814502]
[1739729939134,24.72184502,189.01,188.94,19.36814502]
[1739729939448,19.36814502,189.0,188.93,24.66104502]
[1739729940154,0.063,189.01,188.91,19.36814502]
[1739729940354,0.063,189.01,188.96,19.36814502]
[1739729940535,19.36814502,189.0,188.93,19.36814502]
[1739729941659,19.36814502,188.97,188.9,19.36814502]
[1739729942146,19.36814502,188.98,188.9,19.36814502]
[1739729942728,5.2918,188.97,188.9,24.66184502]
[1739729942928,19.36814502,188.98,188.9,24.66184502]
[1739729943134,19.36814502,189.0,188.93,19.36814502]
[1739729943333,19.43114502,189.01,188.94,19.36814502]
[1739729943749,19.36814502,189.0,188.93,19.36814502]
[1739729944155,19.43114502,189.01,188.94,19.36814502]
[1739729944937,19.43114502,189.01,188.94,24.66064502]
[1739729946053,32.77999355,189.0,188.93,19.36814502]
[1739729946260,19.36814502,188.98,188.91,24.66164502]
[1739729946464,19.36814502,188.97,188.91,5.2935]
[1739729947262,19.43114502,189.01,188.94,19.36814502]
[1739729947457,0.063,189.01,188.94,19.36814502]
[1739729947643,19.36814502,189.0,188.93,19.36814502]
[1739729948044,19.36814502,188.98,188.91,24.66164502]
[1739729948736,19.36814502,188.98,188.91,24.69164502]
[1739729949547,22.47751102,188.99,188.92,19.36814502]
[1739729949745,3.109366,188.99,188.95,19.36814502]
[1739729949935,3.109366,188.99,188.97,19.36814502]
[1739729950138,0.063,189.0,188.98,19.36814502]
[1739729950558,0.063,189.0,188.97,19.36814502]
[1739729950773,0.063,189.0,188.96,19.36814502]
[1739729951150,0.063,189.0,188.97,5.2918]
[1739729951346,0.063,189.0,188.98,19.36814502]
[1739729951568,0.063,189.0,188.99,19.36814502]
[1739729953272,0.063,189.0,188.99,24.65934502]
[1739729954470,0.063,189.0,188.97,19.36814502]
[1739729954845,0.063,189.0,188.98,19.36814502]
[1739729955769,0.063,189.0,188.97,24.65984502]
[1739729955958,0.063,189.0,188.97,19.36814502]
[1739729956769,0.063,189.0,188.99,19.36814502]
[1739729958072,0.063,189.0,188.99,24.65934502]
[1739729962553,0.063,189.0,188.99,17.38195318]
[1739729964978,0.063,189.0,188.98,12.09075318]
[1739729965155,0.063,189.0,188.96,12.09075318]
[1739729966055,0.063,189.0,188.95,12.09075318]
[1739729966271,12.15375318,189.0,188.93,12.12075318]
[1739729966774,12.15375318,189.0,188.93,17.41365318]
[1739729966982,17.44485318,189.0,188.93,17.41365318]
[1739729967362,5.3541,189.0,188.94,12.09075318]
[1739729967570,0.063,189.0,188.95,12.09075318]
[1739729967775,5.354,189.0,188.94,12.09075318]
[1739729968358,0.063,189.0,188.96,12.09075318]
[1739729968669,12.09075318,188.99,188.93,12.12075318]
[1739729969179,12.15375318,189.0,188.93,12.12075318]
[1739729969363,0.063,189.0,188.94,12.09075318]
[1739729969774,0.063,189.0,188.96,12.09075318]
[1739729970188,0.063,189.0,188.95,12.09075318]
[1739729970570,5.3541,189.0,188.94,12.09075318]
[1739729971079,17.44485318,189.0,188.93,12.12075318]
[1739729972493,12.09075318,188.99,188.93,0.03]
[1739729972803,12.09075318,188.98,188.93,0.03]
[1739729972984,12.09075318,188.99,188.93,0.03]
[1739729973401,12.09075318,188.99,188.93,12.12075318]
[1739729973698,17.44485318,189.0,188.93,12.12075318]
[1739729976271,17.44485318,189.0,188.93,0.03]
[1739729976272,25.50260171,188.99,188.93,0.03]
[1739729976602,12.09075318,188.95,188.93,0.03]
[1739729977101,5.2926,188.94,188.93,0.03]
[1739729978287,17.38335318,188.94,188.93,0.03]
[1739729980818,20.5029371,188.94,188.93,0.03]
[1739729981103,20.5029371,188.94,188.91,0.03]
[1739729981104,33.41184853,188.92,188.91,0.03]
[1739729981277,57.59335489,188.92,188.91,0.03]
[1739729981483,58.59335489,188.92,188.91,0.0001]
[1739729982189,58.59335489,188.92,188.73,20.44975318]
[1739729982190,21.0,188.88,188.75,12.09075318]
[1739729982405,12.09075318,188.82,188.75,12.09075318]
[1739729982712,12.09075318,188.8,188.73,12.09075318]
[1739729982888,20.0,188.8,188.68,5.2999]
[1739729983094,20.0,188.8,188.64,27.44955318]
[1739729983095,5.2968,188.79,188.65,24.02760067]
[1739729983300,12.09075318,188.77,188.7,12.09075318]
[1739729984809,17.38815318,188.77,188.7,12.09075318]
[1739729985019,25.50260171,188.76,188.69,12.09075318]
[1739729985191,12.09075318,188.75,188.68,12.09075318]
[1739729985519,12.09075318,188.78,188.71,12.09075318]
[1739729985680,25.50260171,188.78,188.72,12.09075318]
[1739729985884,12.09075318,188.77,188.7,12.09075318]
[1739729986096,13.41184853,188.76,188.7,12.09075318]
[1739729986610,13.41184853,188.76,188.7,17.39015318]
[1739729987005,12.09075318,188.78,188.71,12.09075318]
[1739729987406,25.50260171,188.78,188.71,12.09075318]
[1739729988026,12.09075318,188.75,188.7,0.03]
[1739729988187,12.09075318,188.76,188.7,0.03]
[1739729989322,12.09075318,188.75,188.7,0.03]
[1739729990119,12.09075318,188.76,188.7,0.03]
[1739729990321,12.09075318,188.77,188.7,12.12075318]
[1739729990522,12.09075318,188.81,188.74,12.09075318]
[1739729991322,12.09075318,188.81,188.75,5.298]
[1739729991807,12.09075318,188.79,188.72,12.09075318]
[1739729992014,5.2964,188.81,188.71,5.2988]
[1739729992015,13.41184853,188.8,188.71,17.38955318]
[1739729992234,12.09075318,188.73,188.7,0.03]
[1739729992826,12.09075318,188.75,188.7,0.03]
[1739729993253,12.09075318,188.73,188.7,0.03]
[1739729993409,12.09075318,188.75,188.7,0.03]
[1739729993951,12.09075318,188.78,188.71,12.09075318]
[1739729994446,12.09075318,188.77,188.7,12.12075318]
[1739729994821,12.09075318,188.76,188.7,0.03]
[1739729995006,12.09075318,188.74,188.7,0.03]
[1739729995213,12.09075318,188.73,188.7,0.03]
[1739729995813,12.09075318,188.74,188.7,0.03]
[1739729996542,12.09075318,188.75,188.7,0.03]
[1739729996740,12.09075318,188.74,188.7,0.03]
[1739729997108,12.09075318,188.75,188.7,0.03]
[1739729997419,12.09075318,188.77,188.7,12.12075318]
[1739729998840,17.38835318,188.77,188.7,12.12075318]
[1739729999544,12.09075318,188.76,188.7,0.03]
[1739729999750,12.09075318,188.74,188.7,0.03]
[1739730000113,25.50260171,188.75,188.7,0.03]
[1739730000316,5.2976,188.77,188.7,17.42005318]
[1739730000317,17.38835318,188.77,188.7,17.42005318]
[1739730000534,5.2976,188.77,188.71,12.09075318]
[1739730000813,17.38835318,188.77,188.7,12.12075318]
[1739730001130,12.09075318,188.76,188.7,0.03]
[1739730001824,83.3,188.83,188.71,12.09075318]
[1739730001825,17.38795318,188.78,188.71,12.09075318]
[1739730002329,5.2972,188.78,188.72,12.09075318]
[1739730002530,17.38795318,188.78,188.7,17.42015318]
[1739730002752,17.38875318,188.75,188.7,0.03]
[1739730002932,12.09075318,188.74,188.7,0.03]
[1739730003426,12.09075318,188.73,188.7,0.03]
[1739730003628,12.09075318,188.71,188.7,0.03]
[1739730004038,25.50260171,188.71,188.7,0.03]
[1739730004850,30.80170171,188.71,188.7,0.03]
[1739730006334,20.0,188.68,188.58,12.09075318]
[1739730006633,12.09075318,188.63,188.56,12.09075318]
[1739730006836,12.09075318,188.62,188.55,12.09075318]
[1739730007026,12.09075318,188.62,188.52,10.0409]
[1739730007027,12.09075318,188.58,188.52,12.09075318]
[1739730007228,12.09075318,188.61,188.54,12.09075318]
[1739730007423,12.09075318,188.59,188.47,19.36612095]
[1739730007627,13.41184853,188.61,188.47,5.3058]
[1739730008139,12.09075318,188.57,188.5,12.09075318]
[1739730008325,12.09075318,188.54,188.47,12.09075318]
[1739730008640,19.46248804,188.51,188.44,19.46248804]
[1739730008829,19.46248804,188.52,188.45,19.46248804]
[1739730009030,13.41184853,188.51,188.44,19.46248804]
[1739730009227,24.76658804,188.54,188.47,19.46248804]
[1739730009426,13.41184853,188.53,188.47,19.46248804]
[1739730009618,13.41184853,188.53,188.48,19.46248804]
[1739730009819,19.46248804,188.57,188.5,19.46248804]
[1739730010062,19.46248804,188.6,188.53,19.46248804]
[1739730010417,39.46248804,188.62,188.54,19.46248804]
[1739730010622,19.46248804,188.61,188.53,19.46248804]
[1739730010889,19.46248804,188.6,188.53,5.304]
[1739730011032,19.46248804,188.58,188.51,24.76698804]
[1739730011219,13.41184853,188.55,188.49,24.76758804]
[1739730011430,32.87433657,188.55,188.47,19.46248804]
[1739730011955,32.87433657,188.53,188.46,24.76848804]
[1739730012154,13.41184853,188.51,188.45,19.46248804]
[1739730012343,19.46248804,188.55,188.47,19.46248804]
[1739730012546,40.5558,188.62,188.45,5.3062]
[1739730012547,19.46248804,188.56,188.49,19.46248804]
[1739730012848,19.46248804,188.55,188.49,5.3051]
[1739730013052,32.87433657,188.54,188.47,19.46248804]
[1739730013229,19.46248804,188.52,188.45,24.76858804]
[1739730013431,13.41184853,188.51,188.45,24.76858804]
[1739730013855,19.46248804,188.54,188.47,19.46248804]
[1739730014163,13.41184853,188.55,188.49,19.46248804]
[1739730014321,32.87433657,188.55,188.48,19.46248804]
[1739730014524,13.41184853,188.55,188.48,19.46248804]
[1739730014736,13.41184853,188.55,188.5,5.305]
[1739730015056,19.46248804,188.57,188.5,24.76748804]
[1739730015266,19.46248804,188.58,188.51,19.46248804]
[1739730015551,13.41184853,188.57,188.51,19.46248804]
[1739730015754,13.41184853,188.57,188.5,24.76748804]
[1739730015959,9.5226,188.65,188.53,19.46248804]
[1739730015960,19.46248804,188.6,188.53,19.46248804]
[1739730016156,19.46248804,188.66,188.59,19.46248804]
[1739730016471,19.46248804,188.68,188.61,19.46248804]
[1739730016838,7.89172015,188.69,188.62,5.3016]
[1739730017265,19.46248804,188.68,188.62,5.3016]
[1739730017436,27.35420819,188.69,188.62,24.76408804]
[1739730017636,7.89172015,188.69,188.63,19.46248804]
[1739730017848,7.89172015,188.69,188.62,5.3016]
[1739730018059,19.46248804,188.69,188.62,24.76408804]
[1739730018441,19.46248804,188.74,188.67,19.46248804]
[1739730018642,19.46248804,188.74,188.62,18.5557]
[1739730018643,19.46248804,188.79,188.64,21.41888804]
[1739730018935,19.46248804,188.78,188.72,5.2986]
[1739730019141,15.8574,188.82,188.68,5.2999]
[1739730019551,13.41184853,188.81,188.68,5.2999]
[1739730019753,20.0,188.79,188.68,5.2999]
[1739730020256,15.8574,188.82,188.7,5.2994]
[1739730020257,19.46248804,188.76,188.7,5.2994]
[1739730020465,19.46248804,188.78,188.72,19.46248804]
[1739730020877,19.46248804,188.79,188.72,19.46248804]
[1739730021062,1.0,188.88,188.77,19.46248804]
[1739730021063,19.46248804,188.84,188.77,19.46248804]
[1739730021368,13.7042,188.88,188.7,18.5479]
[1739730021543,13.41184853,188.83,188.7,18.5479]
[1739730022183,13.41184853,188.87,188.7,18.5479]
[1739730022374,19.46248804,188.79,188.73,5.2985]
[1739730022570,19.46248804,188.8,188.73,24.76098804]
[1739730022977,19.46248804,188.8,188.7,13.2485]
[1739730022978,13.41184853,188.78,188.72,19.46248804]
[1739730023168,19.46248804,188.83,188.76,19.46248804]
[1739730023567,19.46248804,188.82,188.75,19.46248804]
[1739730023871,19.46248804,188.78,188.72,19.46248804]
[1739730024273,19.46248804,188.79,188.73,19.46248804]
[1739730024471,32.87433657,188.81,188.74,19.46248804]
[1739730024777,19.46248804,188.85,188.78,19.46248804]
[1739730025085,19.46248804,188.87,188.81,19.46248804]
[1739730025261,19.46248804,188.89,188.82,19.46248804]
[1739730025463,0.063,188.91,188.86,19.46248804]
[1739730025684,0.063,188.91,188.87,19.46248804]
[1739730026100,0.063,188.91,188.88,19.46248804]
[1739730026392,0.063,188.91,188.9,19.46248804]